bitfinex-derivatives/quotes_SOLF0:USTF0_20250416
["timestamp","ask_amount","ask_price","bid_price","bid_amount"]
[1744822028794,7.8354,127.64,127.62,0.05353976]
[1744822029391,7.89510864,127.65,127.62,7.88973976]
[1744822029587,0.06030864,127.65,127.62,7.88973976]
[1744822029894,7.8357,127.63,127.62,0.05353976]
[1744822030290,0.06030864,127.65,127.59,7.8379]
[1744822030593,31.7,127.66,127.56,29.7638118]
[1744822031288,0.0599033,127.62,127.6,0.05889102]
[1744822031483,0.0599033,127.62,127.6,7.89619102]
[1744822031992,31.7399033,127.62,127.6,0.05889102]
[1744822032190,29.7638118,127.61,127.49,29.7638118]
[1744822032387,29.7638118,127.58,127.48,6.2816]
[1744822032587,31.68,127.57,127.48,6.2816]
[1744822032783,7.8406,127.56,127.53,7.8415]
[1744822033087,31.68,127.57,127.53,0.05466164]
[1744822033391,0.05849173,127.56,127.55,7.8402]
[1744822035991,0.05849173,127.56,127.54,10.0295]
[1744822036295,0.05849173,127.56,127.53,0.05466164]
[1744822036691,7.841,127.55,127.53,0.05466164]
[1744822037294,39.57889173,127.56,127.53,7.89646164]
[1744822037495,0.05849173,127.56,127.53,29.81847344]
[1744822037693,0.05849173,127.56,127.53,31.95207344]
[1744822037896,0.05849173,127.56,127.55,7.8406]
[1744822039399,0.05849173,127.56,127.53,0.05466164]
[1744822040498,7.89889173,127.56,127.53,7.89626164]
[1744822041395,7.89889173,127.56,127.54,7.8412]
[1744822041597,0.05849173,127.56,127.53,0.05466164]
[1744822042196,0.05849173,127.56,127.54,7.8409]
[1744822042396,0.05849173,127.56,127.53,0.05466164]
[1744822042798,0.05849173,127.56,127.54,7.8413]
[1744822043000,7.89859173,127.56,127.54,7.8413]
[1744822044001,0.05849173,127.56,127.54,7.8413]
[1744822044800,7.89859173,127.56,127.54,7.8413]
[1744822044991,0.05849173,127.56,127.53,0.05466164]
[1744822045199,7.8413,127.54,127.53,0.05466164]
[1744822045394,33.7375,127.55,127.48,2.2033]
[1744822045596,33.7375,127.55,127.46,35.9792]
[1744822045995,33.7375,127.55,127.5,7.8434]
[1744822046192,7.843,127.52,127.46,35.9792]
[1744822046497,0.05606603,127.5,127.48,0.05796976]
[1744822049202,0.05606603,127.5,127.49,7.8443]
[1744822051895,0.05606603,127.5,127.48,0.05796976]
[1744822052902,0.05606603,127.5,127.49,7.8443]
[1744822053106,31.68,127.54,127.49,29.7638118]
[1744822053304,39.5203,127.56,127.51,29.7638118]
[1744822053506,31.68,127.56,127.51,29.7638118]
[1744822053709,31.68,127.59,127.55,29.7638118]
[1744822053904,39.5182,127.59,127.56,7.8394]
[1744822054107,39.5679201,127.59,127.56,7.89700378]
[1744822054407,31.7297201,127.59,127.56,0.05760378]
[1744822054702,7.8392,127.58,127.56,0.05760378]
[1744822055909,7.8392,127.58,127.56,7.89760378]
[1744822056408,31.7297201,127.59,127.56,0.05760378]
[1744822057011,39.5683201,127.59,127.56,7.89750378]
[1744822058114,39.5683201,127.59,127.57,7.8393]
[1744822058411,39.5683201,127.59,127.56,0.05760378]
[1744822058614,31.7297201,127.59,127.58,7.8388]
[1744822058912,0.0497201,127.59,127.58,7.8388]
[1744822059112,0.0497201,127.59,127.56,0.05760378]
[1744822059817,7.8883201,127.59,127.56,7.89760378]
[1744822063819,0.0497201,127.59,127.56,0.05760378]
[1744822064318,7.8882201,127.59,127.56,7.89710378]
[1744822064919,0.0497201,127.59,127.56,0.05760378]
[1744822065615,0.0497201,127.59,127.57,7.839]
[1744822065918,0.0497201,127.59,127.56,0.05760378]
[1744822066118,0.0497201,127.59,127.58,7.8388]
[1744822066818,0.0497201,127.59,127.56,0.05760378]
[1744822068319,7.8391,127.58,127.56,7.89740378]
[1744822069221,7.8882201,127.59,127.56,7.89740378]
[1744822070121,7.8882201,127.59,127.57,7.8394]
[1744822071519,0.0497201,127.59,127.56,0.05760378]
[1744822071729,0.0497201,127.59,127.58,7.8388]
[1744822072023,0.0497201,127.59,127.56,0.05760378]
[1744822072222,7.8391,127.58,127.56,0.05760378]
[1744822074724,7.8391,127.58,127.56,7.89750378]
[1744822075028,0.0497201,127.59,127.56,0.05760378]
[1744822075228,0.0497201,127.59,127.57,7.8388]
[1744822075527,0.0497201,127.59,127.56,0.05760378]
[1744822075927,0.0497201,127.59,127.57,7.8394]
[1744822076123,0.0497201,127.59,127.56,0.05760378]
[1744822077928,7.8880201,127.59,127.57,7.8394]
[1744822078127,0.0497201,127.59,127.56,0.05760378]
[1744822078322,0.0497201,127.59,127.58,7.8388]
[1744822083633,31.64,127.65,127.58,2.009]
[1744822083833,7.836,127.63,127.59,18.57038106]
[1744822084035,31.64,127.65,127.59,18.57038106]
[1744822084229,18.57038106,127.64,127.55,18.57038106]
[1744822084426,0.05691661,127.61,127.58,0.0501746]
[1744822084630,31.64,127.6,127.58,0.0501746]
[1744822084834,7.8382,127.59,127.58,0.0501746]
[1744822087838,31.64,127.6,127.58,0.0501746]
[1744822088535,0.05691661,127.61,127.59,18.57038106]
[1744822088836,0.05691661,127.61,127.6,7.8376]
[1744822094237,0.05691661,127.61,127.59,20.71158106]
[1744822094537,0.05691661,127.61,127.58,0.0501746]
[1744822094735,7.8382,127.59,127.58,0.0501746]
[1744822096043,31.69691661,127.61,127.58,0.0501746]
[1744822097141,7.8379,127.6,127.58,0.0501746]
[1744822098242,7.8379,127.6,127.58,7.8889746]
[1744822099044,7.8379,127.6,127.58,0.0501746]
[1744822100048,7.8379,127.6,127.58,7.8888746]
[1744822100350,7.8382,127.59,127.58,0.0501746]
[1744822102452,7.8378,127.6,127.58,0.0501746]
[1744822102849,7.8378,127.6,127.58,7.8886746]
[1744822103049,31.69691661,127.61,127.58,0.0501746]
[1744822103443,7.8382,127.59,127.58,0.0501746]
[1744822104851,7.8378,127.6,127.58,0.0501746]
[1744822106146,31.69691661,127.61,127.58,0.0501746]
[1744822107158,31.69691661,127.61,127.6,7.8376]
[1744822107355,31.69691661,127.61,127.58,0.0501746]
[1744822109057,7.8382,127.59,127.58,0.0501746]
[1744822112655,18.57038106,127.59,127.51,18.57038106]
[1744822112856,18.57038106,127.59,127.53,7.8414]
[1744822113057,54.54408106,127.61,127.51,18.57038106]
[1744822113562,7.8412,127.55,127.52,7.8422]
[1744822114060,7.8412,127.55,127.53,7.8415]
[1744822114451,39.4603,127.56,127.53,7.8415]
[1744822115456,7.8408,127.55,127.53,7.8415]
[1744822115762,31.62,127.56,127.53,7.8415]
[1744822116066,39.4603,127.56,127.54,7.8411]
[1744822116261,31.62,127.56,127.53,18.57038106]
[1744822116758,31.62,127.56,127.55,7.8406]
[1744822116961,0.05618171,127.57,127.55,7.8406]
[1744822117163,0.05618171,127.57,127.55,7.8982881]
[1744822117363,0.05618171,127.57,127.56,7.84]
[1744822117755,39.4566,127.62,127.55,18.62806916]
[1744822117966,4.283,127.65,127.6,18.57038106]
[1744822118263,31.62,127.66,127.6,18.57038106]
[1744822118463,7.8349,127.65,127.62,26.40648106]
[1744822118865,0.05824282,127.65,127.62,18.62037631]
[1744822119066,0.05824282,127.65,127.63,7.8353]
[1744822119865,7.89284282,127.65,127.63,7.8353]
[1744822120666,0.05824282,127.65,127.62,18.62037631]
[1744822121063,0.05824282,127.65,127.63,7.8354]
[1744822121564,2.1653,127.71,127.64,18.57038106]
[1744822121766,596.0,127.73,127.68,18.57038106]
[1744822121965,7.8314,127.7,127.68,18.57038106]
[1744822122166,596.0,127.73,127.68,26.40288106]
[1744822122365,596.0,127.73,127.68,18.57038106]
[1744822122866,0.05980794,127.72,127.7,7.8314]
[1744822123166,0.05980794,127.72,127.71,7.8308]
[1744822124068,0.05980794,127.72,127.7,26.40168106]
[1744822124465,0.05980794,127.72,127.69,0.05595416]
[1744822124661,7.89060794,127.72,127.69,0.05595416]
[1744822124862,18.630189,127.72,127.69,0.05595416]
[1744822125064,22.918389,127.72,127.69,0.05595416]
[1744822125262,7.8314,127.7,127.69,0.05595416]
[1744822125566,4.34800794,127.72,127.66,18.57038106]
[1744822125767,9.9604,127.72,127.69,7.832]
[1744822126161,31.6,127.73,127.68,18.57038106]
[1744822126361,31.6,127.73,127.69,7.88490985]
[1744822126561,0.04968955,127.72,127.69,7.88490985]
[1744822127271,7.87998955,127.72,127.7,7.8314]
[1744822127570,7.87998955,127.72,127.69,0.05320985]
[1744822128170,0.04968955,127.72,127.69,0.05320985]
[1744822128374,0.04968955,127.72,127.69,29.70511186]
[1744822128971,0.04968955,127.72,127.7,7.8311]
[1744822129169,0.04968955,127.72,127.69,29.70511186]
[1744822130174,0.04968955,127.72,127.71,7.8308]
[1744822130874,0.04968955,127.72,127.69,29.70511186]
[1744822131072,0.04968955,127.72,127.69,0.05320985]
[1744822131473,0.04968955,127.72,127.69,29.70511186]
[1744822131878,0.04968955,127.72,127.7,7.8311]
[1744822132473,0.04968955,127.72,127.71,7.8308]
[1744822132778,0.04968955,127.72,127.69,0.05320985]
[1744822133079,0.04968955,127.72,127.71,7.8308]
[1744822136279,0.04968955,127.72,127.7,7.8312]
[1744822137881,0.04968955,127.72,127.71,7.8308]
[1744822140082,31.6,127.76,127.74,7.8286]
[1744822140580,39.4278,127.76,127.73,7.8293]
[1744822140878,31.6,127.76,127.71,29.65190201]
[1744822141079,0.05907445,127.75,127.72,0.05587543]
[1744822141582,7.88777445,127.75,127.72,7.88577543]
[1744822142081,0.05907445,127.75,127.73,7.8295]
[1744822142481,0.05907445,127.75,127.72,0.05587543]
[1744822142680,0.05907445,127.75,127.74,7.829]
[1744822146786,7.8257,127.8,127.74,29.65190201]
[1744822146981,31.54,127.83,127.76,29.65190201]
[1744822147381,7.8243,127.82,127.78,7.826]
[1744822147885,7.8243,127.82,127.79,0.04951625]
[1744822148184,39.3638,127.83,127.79,0.04951625]
[1744822148382,31.54,127.83,127.79,0.04951625]
[1744822148585,61.19190201,127.83,127.79,0.04951625]
[1744822149186,18.51657289,127.82,127.79,0.04951625]
[1744822150690,31.54,127.83,127.79,0.04951625]
[1744822151282,31.54,127.83,127.82,7.8241]
[1744822151784,31.54,127.86,127.85,7.8222]
[1744822152179,31.54,127.89,127.84,18.57620891]
[1744822152380,7.8208,127.88,127.85,7.8219]
[1744822152884,7.8208,127.88,127.84,18.57620891]
[1744822152885,7.8221,127.86,127.84,0.05963602]
[1744822153085,18.51657289,127.9,127.84,0.05249914]
[1744822153389,2.0559,127.89,127.84,0.05249914]
[1744822153986,31.65627696,127.88,127.84,0.05249914]
[1744822154189,31.54,127.87,127.84,0.05249914]
[1744822154692,31.54,127.87,127.77,63.17407696]
[1744822155188,2.065,127.86,127.77,63.17407696]
[1744822155591,31.66067696,127.86,127.77,33.5784]
[1744822155790,7.8236,127.83,127.8,7.8247]
[1744822156090,0.05074159,127.83,127.8,0.05299083]
[1744822156284,31.59074159,127.83,127.8,0.05299083]
[1744822156792,7.8241,127.82,127.8,0.05299083]
[1744822157190,7.8247,127.81,127.8,0.05299083]
[1744822157693,31.59074159,127.83,127.8,0.05299083]
[1744822157892,7.8244,127.82,127.8,7.87819083]
[1744822158091,31.59074159,127.83,127.8,0.05299083]
[1744822158394,7.8246,127.82,127.8,0.05299083]
[1744822159393,39.41454159,127.83,127.8,0.05299083]
[1744822159590,31.59074159,127.83,127.8,0.05299083]
[1744822159894,39.41454159,127.83,127.8,0.05299083]
[1744822160090,31.59074159,127.83,127.8,0.05299083]
[1744822160390,61.18641855,127.83,127.73,29.59567696]
[1744822160591,29.59567696,127.81,127.72,31.52]
[1744822160987,7.8277,127.77,127.74,7.8287]
[1744822161588,7.8859937,127.77,127.74,7.88094275]
[1744822162397,7.8278,127.76,127.74,7.88094275]
[1744822162586,0.0582937,127.77,127.74,0.05224275]
[1744822162891,7.8284,127.75,127.74,0.05224275]
[1744822163696,7.8859937,127.77,127.74,0.05224275]
[1744822164190,0.0582937,127.77,127.74,0.05224275]
[1744822164395,7.8281,127.76,127.74,0.05224275]
[1744822165589,7.8856937,127.77,127.74,7.88114275]
[1744822165994,7.828,127.76,127.74,7.88114275]
[1744822166598,0.0582937,127.77,127.75,7.8283]
[1744822166795,0.0582937,127.77,127.74,0.05224275]
[1744822167698,7.8856937,127.77,127.74,7.88084275]
[1744822168196,7.8856937,127.77,127.74,0.05224275]
[1744822169196,7.8856937,127.77,127.75,7.8283]
[1744822169397,0.0582937,127.77,127.74,0.05224275]
[1744822169696,0.0582937,127.77,127.76,7.8278]
[1744822170495,31.5,127.85,127.77,29.59567696]
[1744822170693,39.3228,127.85,127.79,29.59567696]
[1744822170993,31.5,127.85,127.79,29.59567696]
[1744822171191,31.5,127.85,127.77,33.71097696]
[1744822171399,0.05478588,127.82,127.8,0.0571738]
[1744822172594,7.87918588,127.82,127.8,0.0571738]
[1744822172901,0.05478588,127.82,127.8,0.0571738]
[1744822173094,0.05478588,127.82,127.8,7.8820738]
[1744822173594,0.05478588,127.82,127.8,0.0571738]
[1744822174097,7.87888588,127.82,127.8,0.0571738]
[1744822174394,0.05478588,127.82,127.8,0.0571738]
[1744822175302,0.05478588,127.82,127.8,7.8821738]
[1744822175602,7.87898588,127.82,127.8,0.0571738]
[1744822176200,0.05478588,127.82,127.8,0.0571738]
[1744822176400,0.05478588,127.82,127.8,7.8819738]
[1744822177500,7.87888588,127.82,127.8,7.8819738]
[1744822177998,7.8247,127.81,127.8,0.0571738]
[1744822178499,0.05478588,127.82,127.8,0.0571738]
[1744822178699,7.87918588,127.82,127.8,0.0571738]
[1744822179797,0.05478588,127.82,127.81,7.8247]
[1744822180303,0.05478588,127.82,127.8,7.8821738]
[1744822180497,0.05478588,127.82,127.8,0.0571738]
[1744822181104,7.87918588,127.82,127.8,0.0571738]
[1744822181600,0.05478588,127.82,127.8,0.0571738]
[1744822182703,0.05478588,127.82,127.81,7.8247]
[1744822183301,0.05478588,127.82,127.8,7.8821738]
[1744822184099,0.05478588,127.82,127.81,7.8247]
[1744822184903,7.87888588,127.82,127.8,7.8820738]
[1744822185103,0.05478588,127.82,127.8,0.0571738]
[1744822187006,0.05478588,127.82,127.81,7.8247]
[1744822187599,7.87918588,127.82,127.8,7.8821738]
[1744822187802,0.05478588,127.82,127.8,0.0571738]
[1744822188504,7.87918588,127.82,127.8,7.8821738]
[1744822189509,7.8247,127.81,127.8,0.0571738]
[1744822190208,49.98306721,127.81,127.71,18.50306721]
[1744822190405,35.7437,127.81,127.73,18.50306721]
[1744822190606,7.8261,127.79,127.77,7.8269]
[1744822190807,35.7437,127.81,127.75,18.50306721]
[1744822191002,39.305,127.81,127.79,7.8254]
[1744822191209,0.05838039,127.79,127.78,18.50306721]
[1744822191506,0.05147157,127.8,127.78,18.50306721]
[1744822191706,0.05147157,127.8,127.78,18.55866405]
[1744822192407,0.05147157,127.8,127.79,7.8259]
[1744822200213,39.3232,127.84,127.82,7.8239]
[1744822201008,31.5,127.84,127.8,18.50306721]
[1744822201309,31.5,127.84,127.75,18.50306721]
[1744822201310,18.55598397,127.83,127.75,18.50306721]
[1744822201515,7.8257,127.8,127.78,7.8265]
[1744822201707,18.50306721,127.83,127.75,18.50306721]
[1744822201908,31.5,127.84,127.75,18.50306721]
[1744822202111,7.825,127.81,127.79,7.8257]
[1744822202412,7.87865289,127.81,127.79,7.87797938]
[1744822202611,0.05365289,127.81,127.8,7.8253]
[1744822202817,0.05365289,127.81,127.79,0.05227938]
[1744822203306,0.05365289,127.81,127.8,7.8253]
[1744822206009,0.05365289,127.81,127.79,0.05227938]
[1744822206213,31.46,127.8,127.72,18.50306721]
[1744822206415,31.46,127.8,127.74,18.50306721]
[1744822206609,31.46,127.8,127.77,7.8268]
[1744822206810,31.46,127.8,127.74,18.50306721]
[1744822207313,0.05060408,127.78,127.76,0.05126636]
[1744822207809,7.8271,127.77,127.76,0.05126636]
[1744822208419,7.87740408,127.78,127.76,0.05126636]
[1744822208614,31.46,127.83,127.76,18.55433357]
[1744822208917,31.46,127.83,127.8,18.50306721]
[1744822209516,31.46,127.83,127.81,7.8244]
[1744822209817,31.50940179,127.83,127.81,0.05672294]
[1744822210418,0.04940179,127.83,127.81,0.05672294]
[1744822211513,0.04940179,127.83,127.82,7.8241]
[1744822213813,0.04940179,127.83,127.82,26.32716721]
[1744822214119,39.2819,127.86,127.82,26.32716721]
[1744822214120,31.46,127.86,127.82,18.50306721]
[1744822214316,39.2817,127.86,127.82,18.50306721]
[1744822214717,39.2817,127.86,127.83,7.823]
[1744822215014,31.46,127.86,127.81,0.05672294]
[1744822215219,0.05487638,127.85,127.81,0.05672294]
[1744822215815,7.8241,127.82,127.81,0.05672294]
[1744822216216,39.2841,127.82,127.81,0.05672294]
[1744822218124,31.46,127.82,127.81,0.05672294]
[1744822218325,31.51487638,127.85,127.81,0.05672294]
[1744822218525,39.33717638,127.85,127.81,0.05672294]
[1744822218729,31.51487638,127.85,127.81,0.05672294]
[1744822219024,39.33757638,127.85,127.82,7.8238]
[1744822219325,31.51487638,127.85,127.82,18.50306721]
[1744822219723,31.51487638,127.85,127.84,7.8229]
[1744822220025,31.51487638,127.85,127.82,18.50306721]
[1744822220627,31.51487638,127.85,127.83,7.8232]
[1744822222029,31.51487638,127.85,127.82,18.50306721]
[1744822222227,0.05487638,127.85,127.82,18.50306721]
[1744822223625,0.05487638,127.85,127.82,20.70796721]
[1744822224129,0.05487638,127.85,127.83,7.823]
[1744822224329,0.05487638,127.85,127.82,20.70796721]
[1744822224723,0.05487638,127.85,127.84,7.8229]
[1744822225327,0.05487638,127.85,127.83,7.8231]
[1744822225827,7.8232,127.84,127.81,0.05672294]
[1744822226028,0.05487638,127.85,127.81,0.05672294]
[1744822226526,0.05487638,127.85,127.82,18.50306721]
[1744822227126,0.05487638,127.85,127.84,7.8229]
[1744822228326,0.05487638,127.85,127.81,0.05672294]
[1744822232030,39.2189,127.91,127.87,18.50306721]
[1744822232236,39.2189,127.91,127.88,7.87907526]
[1744822232735,39.2189,127.91,127.89,7.8197]
[1744822233032,39.2189,127.91,127.88,0.05907526]
[1744822233232,31.4,127.91,127.88,0.05907526]
[1744822234233,563.24,127.94,127.88,0.05907526]
[1744822234433,31.4,127.93,127.88,0.05907526]
[1744822234838,39.2176,127.93,127.9,7.8187]
[1744822235136,31.4,127.93,127.9,7.8187]
[1744822235337,31.4,127.93,127.91,7.8184]
[1744822235537,31.4,127.93,127.91,7.87396647]
[1744822235735,31.4,127.93,127.91,0.05556647]
[1744822236437,7.818,127.92,127.91,0.05556647]
[1744822239351,39.2175,127.93,127.91,0.05556647]
[1744822239852,39.2175,127.93,127.91,7.87416647]
[1744822240854,7.818,127.92,127.91,0.05556647]
[1744822241752,39.2176,127.93,127.91,0.05556647]
[1744822242144,31.4,127.93,127.91,0.05556647]
[1744822242346,7.818,127.92,127.91,0.05556647]
[1744822243444,31.4,127.93,127.91,0.05556647]
[1744822244043,31.4,127.93,127.91,7.87386647]
[1744822244551,39.2174,127.93,127.91,7.87386647]
[1744822244852,31.4,127.93,127.91,7.87386647]
[1744822246053,31.4,127.93,127.92,7.818]
[1744822246255,39.2174,127.93,127.91,0.05556647]
[1744822246745,31.4,127.93,127.92,7.818]
[1744822246947,31.4,127.93,127.91,0.05556647]
[1744822247356,31.4,127.93,127.92,7.818]
[1744822248856,39.2174,127.93,127.91,7.87386647]
[1744822249356,31.4,127.93,127.91,0.05556647]
[1744822249556,7.818,127.92,127.91,0.05556647]
[1744822250553,39.2177,127.93,127.91,0.05556647]
[1744822250757,31.4,127.93,127.92,7.818]
[1744822250956,7.8164,127.95,127.92,7.818]
[1744822251157,35.7694,127.96,127.91,0.05556647]
[1744822251458,7.8176,127.93,127.91,7.87376647]
[1744822251756,35.7694,127.96,127.91,0.05556647]
[1744822252057,7.8179,127.93,127.91,7.87386647]
[1744822252252,35.7694,127.96,127.91,0.05556647]
[1744822252458,18.50306721,127.93,127.85,2.1455]
[1744822252658,18.50306721,127.91,127.83,18.50306721]
[1744822252958,31.38,127.9,127.83,18.50306721]
[1744822253157,31.38,127.9,127.85,18.50306721]
[1744822253459,0.05567371,127.89,127.87,18.50306721]
[1744822253660,7.8185,127.92,127.87,18.50306721]
[1744822253857,0.05469605,127.89,127.87,0.05809687]
[1744822254052,7.87469605,127.89,127.87,7.87879687]
[1744822254357,0.05469605,127.89,127.87,7.87879687]
[1744822254557,0.05469605,127.89,127.87,0.05809687]
[1744822255160,7.87489605,127.89,127.87,7.87899687]
[1744822255458,0.05469605,127.89,127.87,0.05809687]
[1744822255660,7.8204,127.88,127.87,0.05809687]
[1744822256054,31.45469605,127.89,127.87,0.05809687]
[1744822256255,39.27499605,127.89,127.87,0.05809687]
[1744822256461,31.45469605,127.89,127.87,0.05809687]
[1744822257058,0.05469605,127.89,127.87,0.05809687]
[1744822257258,0.05469605,127.89,127.87,18.56116408]
[1744822257458,7.8176,127.93,127.87,18.56116408]
[1744822257762,33.4961,127.95,127.89,18.50306721]
[1744822257961,7.817,127.94,127.89,18.50306721]
[1744822258161,33.4961,127.95,127.89,18.50306721]
[1744822258564,33.4961,127.95,127.91,7.87505231]
[1744822258964,7.8176,127.93,127.91,7.87505231]
[1744822259566,7.817,127.94,127.92,7.818]
[1744822259766,31.36,127.95,127.91,0.05665231]
[1744822260767,7.818,127.93,127.91,0.05665231]
[1744822260965,31.36,127.95,127.91,0.05665231]
[1744822262166,7.818,127.92,127.91,0.05665231]
[1744822262367,31.36,127.95,127.91,7.87525231]
[1744822262671,7.8172,127.94,127.91,0.05665231]
[1744822263368,7.8172,127.94,127.92,7.8177]
[1744822264065,7.818,127.92,127.91,0.05665231]
[1744822265265,7.8169,127.94,127.91,0.05665231]
[1744822265865,39.1764,127.95,127.91,0.05665231]
[1744822266065,39.1764,127.95,127.91,18.55971952]
[1744822266975,39.1764,127.95,127.92,7.8178]
[1744822267166,39.1764,127.95,127.91,18.55971952]
[1744822267363,7.8151,127.97,127.93,18.50306721]
[1744822267665,31.34,127.98,127.94,0.05040572]
[1744822267866,7.8161,127.95,127.94,0.05040572]
[1744822268266,18.50306721,127.97,127.88,6.537]
[1744822268472,20.67146721,127.97,127.88,6.537]
[1744822268668,7.8179,127.93,127.9,7.8189]
[1744822268868,31.34,127.94,127.87,49.84306721]
[1744822269371,7.87694697,127.92,127.89,7.8722015]
[1744822269574,0.05854697,127.92,127.89,0.0529015]
[1744822269762,7.819,127.91,127.89,0.0529015]
[1744822269967,0.05854697,127.92,127.89,0.0529015]
[1744822270373,7.8192,127.9,127.89,0.0529015]
[1744822270570,39.1592,127.9,127.89,0.0529015]
[1744822270874,7.8206,127.88,127.86,7.8214]
[1744822271067,31.34,127.9,127.85,16.25621]
[1744822271567,7.8214,127.87,127.85,16.25621]
[1744822271871,7.8214,127.87,127.85,16.30966973]
[1744822271872,0.05372078,127.87,127.85,16.30966973]
[1744822272174,7.87502078,127.87,127.85,16.30966973]
[1744822273877,0.05372078,127.87,127.85,34.81273694]
[1744822274375,0.05372078,127.87,127.86,7.8216]
[1744822274569,31.34,127.9,127.85,34.81273694]
[1744822274876,7.8183,127.92,127.89,7.8195]
[1744822275175,7.8183,127.92,127.87,18.50306721]
[1744822275375,35.5286,127.93,127.87,18.50306721]
[1744822275675,7.87492614,127.91,127.89,7.86974963]
[1744822276375,7.87492614,127.91,127.89,0.05004963]
[1744822276671,7.8192,127.9,127.89,0.05004963]
[1744822279779,7.821,127.88,127.85,16.25621]
[1744822279980,31.36,127.89,127.85,16.25621]
[1744822280273,31.36,127.89,127.85,24.07841]
[1744822280478,7.8214,127.87,127.85,16.25621]
[1744822280782,31.36,127.89,127.85,16.25621]
[1744822281080,0.05828136,127.87,127.85,24.13734472]
[1744822281981,0.05828136,127.87,127.86,7.8216]
[1744822283881,0.05828136,127.87,127.85,24.13754472]
[1744822284381,0.05828136,127.87,127.85,16.31544472]
[1744822284582,0.05828136,127.87,127.79,18.50306721]
[1744822284781,18.50306721,127.84,127.76,2.1488]
[1744822284983,31.36,127.83,127.76,2.1488]
[1744822285184,7.825,127.81,127.78,7.826]
[1744822285683,7.88390805,127.81,127.78,7.884235]
[1744822286281,0.05890805,127.81,127.78,0.058235]
[1744822286877,7.8259,127.79,127.78,0.058235]
[1744822287077,0.05890805,127.81,127.78,0.058235]
[1744822287377,7.88410805,127.81,127.78,7.884435]
[1744822287681,0.05890805,127.81,127.78,0.058235]
[1744822287881,0.05890805,127.81,127.79,7.8256]
[1744822288081,0.05890805,127.81,127.78,0.058235]
[1744822288482,0.05890805,127.81,127.79,7.8255]
[1744822288678,0.05890805,127.81,127.78,0.058235]
[1744822289081,7.88390805,127.81,127.79,7.8259]
[1744822291086,0.05890805,127.81,127.8,7.8253]
[1744822291579,31.32,127.86,127.85,7.8222]
[1744822291782,33.4357,127.89,127.83,29.61867737]
[1744822292175,39.1403,127.89,127.86,7.8211]
[1744822292680,7.821,127.87,127.86,0.05236568]
[1744822292885,31.37085283,127.89,127.86,0.05236568]
[1744822293284,31.37085283,127.89,127.86,7.87366568]
[1744822293683,7.8207,127.88,127.86,7.87366568]
[1744822293986,31.37085283,127.89,127.87,7.8207]
[1744822294490,31.37085283,127.89,127.86,0.05236568]
[1744822294783,31.37085283,127.89,127.88,7.8204]
[1744822295175,31.37085283,127.89,127.87,7.8207]
[1744822295383,31.37085283,127.89,127.86,0.05236568]
[1744822295687,31.37085283,127.89,127.87,7.8205]
[1744822295989,31.37085283,127.89,127.86,0.05236568]
[1744822296487,31.37085283,127.89,127.87,7.821]
[1744822296989,31.37085283,127.89,127.86,0.05236568]
[1744822297987,0.05085283,127.89,127.88,7.8204]
[1744822300188,0.05085283,127.89,127.86,0.05236568]
[1744822300689,31.32,127.88,127.86,0.05236568]
[1744822302090,31.32,127.88,127.87,7.821]
[1744822302283,0.05085283,127.89,127.86,0.05236568]
[1744822302690,0.05085283,127.89,127.88,7.8204]
[1744822302887,0.05085283,127.89,127.86,0.05236568]
[1744822303194,0.05085283,127.89,127.86,7.87376568]
[1744822303390,7.87105283,127.89,127.86,0.05236568]
[1744822303588,0.05085283,127.89,127.86,0.05236568]
[1744822303892,0.05085283,127.89,127.88,7.8204]
[1744822306293,5.283e-05,127.89,127.88,7.8204]
[1744822310196,5.283e-05,127.89,127.88,37.43907737]
[1744822310695,594.48,127.97,127.93,7.817]
[1744822310888,31.32,127.97,127.9,60.93867737]
[1744822311194,31.32,127.97,127.92,18.46260284]
[1744822311494,39.1352,127.97,127.95,7.8161]
[1744822311895,39.19152285,127.97,127.95,7.86655672]
[1744822312493,31.37632285,127.97,127.96,7.8155]
[1744822312698,0.05632285,127.97,127.96,7.8155]
[1744822313198,0.05632285,127.97,127.95,0.05045672]
[1744822313793,2.0721,128.02,127.95,31.37045672]
[1744822313998,2.0721,128.02,127.95,60.9075463]
[1744822314193,2.0721,128.02,127.99,7.8135]
[1744822314899,7.8128,128.01,127.99,0.05781716]
[1744822315099,2.0721,128.02,127.99,0.05781716]